[Event "EYCC Open-U18 2019"]
[Site "Bratislava"]
[Date "2019.08.07"]
[Round "6.39"]
[White "Pektas, Yigit"]
[Black "Kizatbay, Abyl"]
[Result "1-0"]
[ECO "D76"]
[WhiteElo "2111"]
[BlackElo "2216"]
[Annotator "NA"]
[PlyCount "129"]
[EventDate "2019.08.02"]
[EventType "swiss"]
[EventCountry "SVK"]
[SourceTitle "playchess.com"]
[Source "ChessBase"]
[SourceQuality "1"]
[TimeControl "40/5400+30:1800+30"]

1. d4 {[%emt 0:00:00]} g6 {[%emt 0:00:00]} 2. c4 {[%emt 0:00:00]} Nf6 {[%emt 0:00:00]} 3. g3 {[%emt 0:00:00]} Bg7 {[%emt 0:05:06]} 4. Bg2 {[%emt 0:00:03]} d5 {[%emt 0:02:12]} 5. cxd5 {[%emt 0:01:06]} Nxd5 {[%emt 0:00:14]} 6. Nf3 {[%emt 0:00:03]} O-O {[%emt 0:00:21]} 7. O-O {[%emt 0:00:11]} Nb6 {[%emt 0:01:18]} 8. Nc3 {[%emt 0:00:06]} Nc6 {[%emt 0:00:31]} 9. e3 {[%emt 0:00:04]} e5 {[%emt 0:01:35]} 10. d5 {[%emt 0:00:14]} Ne7 {[%emt 0:04:03]} 11. e4 {[%emt 0:00:53]} Bg4 {[%emt 0:00:53]} 12. Qb3 {[%emt 0:10:18]} c6 {[%emt 0:05:32]} 13. Bg5 {[%emt 0:08:31]} cxd5 {[%emt 0:03:40]} 14. Nxd5 {[%emt 0:03:39]} Nbxd5 {[%emt 0:01:01]} 15. exd5 {[%emt 0:00:20]} h6 {[%emt 0:03:14]} 16. Bxe7 {[%emt 0:00:07]} Qxe7 {[%emt 0:00:06]} 17. Nd2 {[%emt 0:02:16]} Rac8 {[%emt 0:08:47]} 18. Rfe1 {[%emt 0:01:51]} b6 {[%emt 0:10:42]} 19. Nc4 {[%emt 0:08:17]} Rfe8 {[%emt 0:03:26]} 20. h3 {[%emt 0:04:45]} Bd7 {[%emt 0:03:53]} 21. Rad1 {[%emt 0:01:07]} Qc5 {[%emt 0:04:18]} 22. Ne3 {[%emt 0:03:01]} Qd6 {[%emt 0:02:28]} 23. Nc4 {[%emt 0:04:49]} Qc5 {[%emt 0:01:43]} 24. Ne3 {[%emt 0:06:54]} e4 {[%emt 0:10:02]} 25. d6 {[%emt 0:04:17]} Re6 {[%emt 0:03:25]} 26. Nd5 {[%emt 0:02:44]} Bf8 {[%emt 0:02:57]} 27. Bxe4 {[%emt 0:11:22]} Bxd6 {[%emt 0:04:17]} 28. Nf4 {[%emt 0:11:00]} Rf6 {[%emt 0:01:56]} 29. Rd5 {[%emt 0:00:16]} Qc7 {[%emt 0:01:32]} 30. Qd3 {[%emt 0:10:26]} Bc6 {[%emt 0:01:54]} 31. Qd4 {[%emt 0:00:55]} Kg7 {[%emt 0:06:20]} 32. Rf5 {[%emt 0:01:45]} gxf5 {[%emt 0:03:35]} 33. Nh5+ {[%emt 0:00:05]} Kf8 {[%emt 0:01:22]} 34. Bxc6 {[%emt 0:01:34]} Be5 {[%emt 0:02:22]} 35. Rxe5 {[%emt 0:01:28]} Rxc6 {[%emt 0:00:01]} 36. Rxf5 {[%emt 0:01:08]} Rg6 {[%emt 0:01:14]} 37. Qh8+ {[%emt 0:00:45]} Ke7 {[%emt 0:00:02]} 38. Rxf7+ {[%emt 0:00:07]} Kxf7 {[%emt 0:00:27]} 39. Qh7+ {[%emt 0:00:01]} Kf8 {[%emt 0:00:22]} 40. Qxg6 {[%emt 0:00:00]} Qc6 {[%emt 0:00:00]} 41. Qg7+ {[%emt 0:06:20]} Ke8 {[%emt 0:02:26]} 42. Nf6+ {[%emt 0:00:59]} Kd8 {[%emt 0:00:04]} 43. h4 {[%emt 0:02:05]} Qe6 {[%emt 0:04:13]} 44. Qf8+ {[%emt 0:02:16]} Kc7 {[%emt 0:00:06]} 45. Qxh6 {[%emt 0:00:03]} Kb7 {[%emt 0:01:35]} 46. h5 {[%emt 0:02:20]} Qe1+ {[%emt 0:07:54]} 47. Kg2 {[%emt 0:00:03]} Rc1 {[%emt 0:00:24]} 48. Qh7+ {[%emt 0:00:22]} Kb8 {[%emt 0:02:56]} 49. Qg8+ {[%emt 0:03:02]} Kb7 {[%emt 0:00:26]} 50. Qd5+ {[%emt 0:00:20]} Ka6 {[%emt 0:01:33]} 51. Qd3+ {[%emt 0:03:10]} b5 {[%emt 0:05:38]} 52. g4 {[%emt 0:02:17]} Qh1+ {[%emt 0:02:04]} 53. Kg3 {[%emt 0:00:04]} Rg1+ {[%emt 0:02:19]} 54. Kf4 {[%emt 0:00:06]} Qh4 {[%emt 0:00:33]} 55. Qd6+ {[%emt 0:01:24]} Ka5 {[%emt 0:00:36]} 56. Qa3+ {[%emt 0:00:20]} Kb6 {[%emt 0:00:05]} 57. Qe3+ {[%emt 0:00:05]} Ka6 {[%emt 0:00:22]} 58. Kf5 {[%emt 0:00:39]} Qh2 {[%emt 0:03:02]} 59. Kg6 {[%emt 0:05:55]} Qc7 {[%emt 0:00:37]} 60. h6 {[%emt 0:00:30]} Qc6 {[%emt 0:00:21]} 61. g5 {[%emt 0:00:32]} Qc2+ {[%emt 0:00:23]} 62. Qe4 {[%emt 0:00:10]} Qc5 {[%emt 0:01:54]} 63. f4 {[%emt 0:00:41]} Qf8 {[%emt 0:03:20]} 64. h7 {[%emt 0:00:34]} Ka5 {[%emt 0:00:44]} 65. Qe8 {[%emt 0:00:31]} 1-0

[Event "EYCC Open-U18 2019"]
[Site "Bratislava"]
[Date "2019.08.07"]
[Round "6.40"]
[White "Kaspar, Lukas"]
[Black "Riha, Vojtech"]
[Result "0-1"]
[ECO "A05"]
[WhiteElo "1886"]
[BlackElo "2197"]
[Annotator "NA"]
[PlyCount "66"]
[EventDate "2019.08.02"]
[EventType "swiss"]
[EventCountry "SVK"]
[SourceTitle "playchess.com"]
[Source "ChessBase"]
[SourceQuality "1"]
[TimeControl "40/5400+30:1800+30"]

1. Nf3 {[%emt 0:00:00]} Nf6 {[%emt 0:00:00]} 2. g3 {[%emt 0:00:00]} d6 {[%emt 0:00:55]} 3. Bg2 {[%emt 0:00:00]} e5 {[%emt 0:00:31]} 4. d3 {[%emt 0:01:04]} Be7 {[%emt 0:01:16]} 5. O-O {[%emt 0:02:51]} O-O {[%emt 0:00:33]} 6. c4 {[%emt 0:02:39]} c6 {[%emt 0:02:17]} 7. Nc3 {[%emt 0:02:18]} Nbd7 {[%emt 0:03:55]} 8. Bd2 {[%emt 0:15:50]} Re8 {[%emt 0:08:47]} 9. b4 {[%emt 0:07:46]} h6 {[%emt 0:09:45]} 10. Qb3 {[%emt 0:06:33]} Bf8 {[%emt 0:04:37]} 11. a4 {[%emt 0:07:58]} a5 {[%emt 0:05:05]} 12. b5 {[%emt 0:06:24]} Qc7 {[%emt 0:04:27]} 13. Rfc1 {[%emt 0:06:53]} Nc5 {[%emt 0:01:37]} 14. Qc2 {[%emt 0:00:27]} Bd7 {[%emt 0:07:09]} 15. Ra2 {[%emt 0:03:34]} g6 {[%emt 0:02:41]} 16. h3 {[%emt 0:03:27]} Bg7 {[%emt 0:01:04]} 17. Be3 {[%emt 0:02:33]} Qc8 {[%emt 0:12:16]} 18. Kh2 {[%emt 0:00:37]} Ne6 {[%emt 0:04:32]} 19. Qd2 {[%emt 0:06:25]} g5 {[%emt 0:03:39]} 20. Bb6 {[%emt 0:03:01]} Nc5 {[%emt 0:05:05]} 21. Rb1 {[%emt 0:03:04]} e4 {[%emt 0:05:05]} 22. Ne1 {[%emt 0:02:26]} Bf5 {[%emt 0:03:38]} 23. Nd1 {[%emt 0:02:16]} exd3 {[%emt 0:02:15]} 24. exd3 {[%emt 0:01:09]} Nfd7 {[%emt 0:04:30]} 25. Bxa5 {[%emt 0:04:28]} Ne5 {[%emt 0:00:45]} 26. Nb2 {[%emt 0:01:30]} Nb3 {[%emt 0:00:10]} 27. Qb4 {[%emt 0:02:57]} Nxa5 {[%emt 0:00:13]} 28. Qxd6 {[%emt 0:00:08]} Naxc4 {[%emt 0:02:40]} 29. Nxc4 {[%emt 0:01:41]} Nxc4 {[%emt 0:00:04]} 30. Qc5 {[%emt 0:00:10]} Ne5 {[%emt 0:00:15]} 31. a5 {[%emt 0:03:14]} Nxd3 {[%emt 0:02:02]} 32. Nxd3 {[%emt 0:00:21]} Bxd3 {[%emt 0:00:04]} 33. bxc6 {[%emt 0:00:10]} Bxb1 {[%emt 0:00:20]} 0-1

[Event "EYCC Open-U18 2019"]
[Site "Bratislava"]
[Date "2019.08.07"]
[Round "6.41"]
[White "Garanin, Aleksei"]
[Black "Vardanyan, Aras"]
[Result "1-0"]
[ECO "B92"]
[WhiteElo "2192"]
[BlackElo "2027"]
[Annotator "NA"]
[PlyCount "107"]
[EventDate "2019.08.02"]
[EventType "swiss"]
[EventCountry "SVK"]
[SourceTitle "playchess.com"]
[Source "ChessBase"]
[SourceQuality "1"]
[TimeControl "40/5400+30:1800+30"]

1. e4 {[%emt 0:00:00]} c5 {[%emt 0:00:00]} 2. Nf3 {[%emt 0:00:00]} d6 {[%emt 0:00:00]} 3. d4 {[%emt 0:00:00]} cxd4 {[%emt 0:00:00]} 4. Nxd4 {[%emt 0:00:00]} Nf6 {[%emt 0:00:00]} 5. Nc3 {[%emt 0:00:00]} a6 {[%emt 0:00:00]} 6. Be2 {[%emt 0:00:13]} e5 {[%emt 0:00:03]} 7. Nb3 {[%emt 0:00:06]} Be7 {[%emt 0:00:20]} 8. O-O {[%emt 0:01:14]} Be6 {[%emt 0:00:12]} 9. Kh1 {[%emt 0:01:43]} O-O {[%emt 0:00:31]} 10. f4 {[%emt 0:00:17]} Qc7 {[%emt 0:02:07]} 11. f5 {[%emt 0:02:20]} Bc4 {[%emt 0:00:11]} 12. Bg5 {[%emt 0:01:15]} Nbd7 {[%emt 0:02:17]} 13. Rf3 {[%emt 0:07:39]} Rfe8 {[%emt 0:03:54]} 14. Nd2 {[%emt 0:00:23]} Bxe2 {[%emt 0:04:25]} 15. Qxe2 {[%emt 0:00:06]} b5 {[%emt 0:00:14]} 16. a3 {[%emt 0:02:33]} Nb6 {[%emt 0:02:35]} 17. Nf1 {[%emt 0:03:33]} d5 {[%emt 0:05:09]} 18. Bxf6 {[%emt 0:01:42]} Bxf6 {[%emt 0:00:10]} 19. exd5 {[%emt 0:00:15]} e4 {[%emt 0:00:27]} 20. Nxe4 {[%emt 0:00:42]} Bxb2 {[%emt 0:00:22]} 21. Rb1 {[%emt 0:01:15]} Qc4 {[%emt 0:02:06]} 22. Qxc4 {[%emt 0:02:25]} Nxc4 {[%emt 0:05:17]} 23. Ned2 {[%emt 0:02:27]} Nxd2 {[%emt 0:02:55]} 24. Nxd2 {[%emt 0:00:01]} Re2 {[%emt 0:00:23]} 25. Rd1 {[%emt 0:04:56]} Rd8 {[%emt 0:07:59]} 26. Rd3 {[%emt 0:00:32]} Re5 {[%emt 0:02:07]} 27. d6 {[%emt 0:02:16]} Rc5 {[%emt 0:00:12]} 28. d7 {[%emt 0:02:44]} Kf8 {[%emt 0:04:22]} 29. Nb3 {[%emt 0:04:39]} Rxc2 {[%emt 0:02:27]} 30. g4 {[%emt 0:06:08]} Be5 {[%emt 0:07:26]} 31. Na5 {[%emt 0:03:19]} Rc7 {[%emt 0:00:23]} 32. Rd5 {[%emt 0:02:00]} f6 {[%emt 0:03:36]} 33. Nb3 {[%emt 0:00:16]} Ke7 {[%emt 0:01:52]} 34. Nc5 {[%emt 0:03:59]} Rxc5 {[%emt 0:01:41]} 35. Rxc5 {[%emt 0:00:02]} Rxd7 {[%emt 0:00:10]} 36. Rcd5 {[%emt 0:03:00]} Rxd5 {[%emt 0:05:41]} 37. Rxd5 {[%emt 0:00:11]} Bd6 {[%emt 0:00:16]} 38. Rd3 {[%emt 0:00:12]} a5 {[%emt 0:02:26]} 39. Kg2 {[%emt 0:01:09]} Kd7 {[%emt 0:00:49]} 40. Kf3 {[%emt 0:00:00]} Kc6 {[%emt 0:00:00]} 41. Ke4 {[%emt 0:02:02]} b4 {[%emt 0:03:16]} 42. a4 {[%emt 0:00:22]} Bxh2 {[%emt 0:00:39]} 43. Kd4 {[%emt 0:08:23]} g6 {[%emt 0:04:54]} 44. Rh3 {[%emt 0:01:15]} Be5+ {[%emt 0:01:00]} 45. Kc4 {[%emt 0:00:01]} gxf5 {[%emt 0:00:48]} 46. gxf5 {[%emt 0:00:01]} Ba1 {[%emt 0:00:44]} 47. Rxh7 {[%emt 0:00:12]} Be5 {[%emt 0:00:34]} 48. Re7 {[%emt 0:00:23]} Bc3 {[%emt 0:00:19]} 49. Re6+ {[%emt 0:00:20]} Kb7 {[%emt 0:00:10]} 50. Rd6 {[%emt 0:01:09]} Ka7 {[%emt 0:01:30]} 51. Kb5 {[%emt 0:02:39]} Kb7 {[%emt 0:01:54]} 52. Rd7+ {[%emt 0:00:36]} Kc8 {[%emt 0:00:19]} 53. Rd3 {[%emt 0:00:16]} Be1 {[%emt 0:01:49]} 54. Kxa5 {[%emt 0:01:04]} 1-0

[Event "EYCC Open-U18 2019"]
[Site "Bratislava"]
[Date "2019.08.07"]
[Round "6.42"]
[White "Pobor, Danilo"]
[Black "Baranciuc, Alexandr"]
[Result "1/2-1/2"]
[ECO "A73"]
[WhiteElo "1996"]
[BlackElo "1901"]
[Annotator "NA"]
[PlyCount "68"]
[EventDate "2019.08.02"]
[EventType "swiss"]
[EventCountry "SVK"]
[SourceTitle "playchess.com"]
[Source "ChessBase"]
[SourceQuality "1"]
[TimeControl "40/5400+30:1800+30"]

1. d4 {[%emt 0:00:00]} Nf6 {[%emt 0:00:00]} 2. c4 {[%emt 0:00:00]} c5 {[%emt 0:00:00]} 3. d5 {[%emt 0:00:00]} e6 {[%emt 0:01:06]} 4. Nc3 {[%emt 0:00:05]} exd5 {[%emt 0:00:05]} 5. cxd5 {[%emt 0:00:04]} d6 {[%emt 0:00:12]} 6. e4 {[%emt 0:00:15]} g6 {[%emt 0:00:06]} 7. Nf3 {[%emt 0:00:04]} Bg7 {[%emt 0:00:05]} 8. Be2 {[%emt 0:00:04]} O-O {[%emt 0:00:09]} 9. O-O {[%emt 0:00:05]} Na6 {[%emt 0:01:13]} 10. Nd2 {[%emt 0:00:39]} Nc7 {[%emt 0:01:45]} 11. a4 {[%emt 0:01:38]} a6 {[%emt 0:03:30]} 12. Nc4 {[%emt 0:10:51]} Re8 {[%emt 0:06:41]} 13. f3 {[%emt 0:03:04]} Rb8 {[%emt 0:12:11]} 14. a5 {[%emt 0:19:20]} Nb5 {[%emt 0:05:40]} 15. Bf4 {[%emt 0:14:26]} Nh5 {[%emt 0:20:16]} 16. Bd2 {[%emt 0:18:33]} f5 {[%emt 0:19:07]} 17. f4 {[%emt 0:03:29]} Nxc3 {[%emt 0:01:53]} 18. Bxc3 {[%emt 0:01:10]} Rxe4 {[%emt 0:01:26]} 19. Nd2 {[%emt 0:04:24]} Rxf4 {[%emt 0:01:08]} 20. Bxh5 {[%emt 0:03:36]} Rxf1+ {[%emt 0:00:07]} 21. Kxf1 {[%emt 0:00:33]} gxh5 {[%emt 0:00:19]} 22. Bxg7 {[%emt 0:01:54]} Kxg7 {[%emt 0:00:12]} 23. Ra3 {[%emt 0:00:20]} Qe8 {[%emt 0:07:37]} 24. Rg3+ {[%emt 0:00:58]} Kh8 {[%emt 0:00:56]} 25. Nc4 {[%emt 0:01:32]} f4 {[%emt 0:05:51]} 26. Rg5 {[%emt 0:00:36]} Qe7 {[%emt 0:00:20]} 27. Qxh5 {[%emt 0:03:26]} Bd7 {[%emt 0:01:21]} 28. h4 {[%emt 0:02:31]} f3 {[%emt 0:02:07]} 29. gxf3 {[%emt 0:02:32]} Re8 {[%emt 0:00:10]} 30. Kg2 {[%emt 0:03:09]} Qe1 {[%emt 0:02:45]} 31. Kh2 {[%emt 0:01:50]} Re2+ {[%emt 0:01:37]} 32. Rg2 {[%emt 0:00:09]} Rxg2+ {[%emt 0:00:07]} 33. Kxg2 {[%emt 0:00:04]} Qe2+ {[%emt 0:00:07]} 34. Kg3 {[%emt 0:00:17]} Qe1+ {[%emt 0:04:45]} 1/2-1/2

[Event "EYCC Open-U18 2019"]
[Site "Bratislava"]
[Date "2019.08.07"]
[Round "6.43"]
[White "Horak, Jan"]
[Black "Sousa, Hugo Carneiro"]
[Result "1/2-1/2"]
[ECO "C00"]
[WhiteElo "2020"]
[BlackElo "2130"]
[Annotator "NA"]
[PlyCount "88"]
[EventDate "2019.08.02"]
[EventType "swiss"]
[EventCountry "SVK"]
[SourceTitle "playchess.com"]
[Source "ChessBase"]
[SourceQuality "1"]
[TimeControl "40/5400+30:1800+30"]

1. e4 {[%emt 0:00:00]} e6 {[%emt 0:00:00]} 2. d3 {[%emt 0:01:02]} d5 {[%emt 0:00:00]} 3. Qe2 {[%emt 0:01:45]} Nf6 {[%emt 0:00:00]} 4. Nf3 {[%emt 0:00:50]} c5 {[%emt 0:00:31]} 5. g3 {[%emt 0:02:39]} Nc6 {[%emt 0:01:09]} 6. Bg2 {[%emt 0:00:51]} Be7 {[%emt 0:00:45]} 7. O-O {[%emt 0:00:58]} O-O {[%emt 0:00:27]} 8. e5 {[%emt 0:01:09]} Ne8 {[%emt 0:00:32]} 9. c3 {[%emt 0:03:17]} b5 {[%emt 0:02:34]} 10. h4 {[%emt 0:01:32]} a5 {[%emt 0:03:09]} 11. Bf4 {[%emt 0:07:16]} c4 {[%emt 0:11:00]} 12. dxc4 {[%emt 0:14:49]} bxc4 {[%emt 0:03:09]} 13. Nbd2 {[%emt 0:00:52]} Rb8 {[%emt 0:03:54]} 14. Rab1 {[%emt 0:01:16]} Nc7 15. Ng5 Bd7 {[%emt 0:06:16]} 16. Rfd1 {[%emt 0:05:11]} Qc8 17. Qh5 {[%emt 0:07:26]} h6 {[%emt 0:03:49]} 18. Nh3 {[%emt 0:03:14]} Na6 {[%emt 0:09:58]} 19. Bxh6 gxh6 {[%emt 0:09:09]} 20. Qxh6 {[%emt 0:04:06]} Nxe5 {[%emt 0:02:16]} 21. Ng5 {[%emt 0:00:48]} Bxg5 {[%emt 0:00:54]} 22. Qxg5+ Ng6 23. h5 {[%emt 0:01:58]} Qd8 {[%emt 0:01:20]} 24. Qxd8 {[%emt 0:04:42]} Rfxd8 {[%emt 0:00:10]} 25. hxg6 {[%emt 0:00:12]} fxg6 {[%emt 0:00:19]} 26. b3 {[%emt 0:02:19]} cxb3 {[%emt 0:03:16]} 27. axb3 {[%emt 0:00:43]} Nc5 {[%emt 0:03:22]} 28. c4 {[%emt 0:02:47]} d4 {[%emt 0:04:06]} 29. Ra1 {[%emt 0:02:04]} a4 {[%emt 0:06:22]} 30. bxa4 {[%emt 0:00:14]} Bxa4 {[%emt 0:00:27]} 31. Rdb1 {[%emt 0:01:08]} d3 {[%emt 0:02:30]} 32. Kf1 {[%emt 0:08:00]} Nb3 {[%emt 0:05:02]} 33. Nxb3 {[%emt 0:02:46]} Bxb3 {[%emt 0:00:11]} 34. Bf3 {[%emt 0:08:10]} Bxc4 {[%emt 0:01:14]} 35. Rxb8 {[%emt 0:00:33]} Rxb8 {[%emt 0:00:01]} 36. Ke1 {[%emt 0:00:59]} Rb2 {[%emt 0:01:25]} 37. Rd1 {[%emt 0:01:01]} Kf7 {[%emt 0:01:02]} 38. Rd2 {[%emt 0:00:26]} Rb3 {[%emt 0:04:49]} 39. Be4 {[%emt 0:00:07]} g5 {[%emt 0:08:49]} 40. f4 {[%emt 0:00:00]} gxf4 {[%emt 0:00:00]} 41. gxf4 {[%emt 0:00:23]} Rb4 {[%emt 0:07:13]} 42. Kf2 {[%emt 0:01:29]} Bd5 {[%emt 0:00:38]} 43. Bxd5 {[%emt 0:00:36]} exd5 {[%emt 0:00:29]} 44. Ke3 {[%emt 0:01:23]} Re4+ {[%emt 0:00:27] Kxe4} 1/2-1/2

[Event "EYCC Open-U18 2019"]
[Site "Bratislava"]
[Date "2019.08.07"]
[Round "6.44"]
[White "Novosel, Marko"]
[Black "Alivodic, Dario"]
[Result "1/2-1/2"]
[ECO "C05"]
[WhiteElo "1981"]
[BlackElo "2120"]
[Annotator "NA"]
[PlyCount "102"]
[EventDate "2019.08.02"]
[EventType "swiss"]
[EventCountry "SVK"]
[SourceTitle "playchess.com"]
[Source "ChessBase"]
[SourceQuality "1"]
[TimeControl "40/5400+30:1800+30"]

1. e4 {[%emt 0:00:00]} e6 {[%emt 0:00:00]} 2. d4 {[%emt 0:00:00]} d5 {[%emt 0:00:00]} 3. Nd2 {[%emt 0:00:09]} Nf6 {[%emt 0:00:00]} 4. e5 {[%emt 0:00:13]} Nfd7 {[%emt 0:00:00]} 5. Bd3 {[%emt 0:00:12]} c5 {[%emt 0:00:00]} 6. c3 {[%emt 0:00:11]} Nc6 {[%emt 0:00:00]} 7. Ngf3 {[%emt 0:00:09]} h5 {[%emt 0:00:00]} 8. h4 {[%emt 0:07:44]} Be7 {[%emt 0:01:19]} 9. b3 {[%emt 0:08:57]} Qb6 {[%emt 0:02:55]} 10. Bb2 {[%emt 0:00:44]} cxd4 {[%emt 0:05:52]} 11. cxd4 {[%emt 0:00:31]} Nf8 {[%emt 0:02:39]} 12. Rc1 {[%emt 0:02:48]} Bd7 {[%emt 0:02:15]} 13. a3 {[%emt 0:03:50]} a5 {[%emt 0:01:06]} 14. Qe2 {[%emt 0:02:40]} O-O-O {[%emt 0:02:09]} 15. Bb5 {[%emt 0:06:12]} Kb8 {[%emt 0:01:35]} 16. Bxc6 {[%emt 0:00:38]} Bxc6 {[%emt 0:00:12]} 17. a4 {[%emt 0:00:55]} f6 {[%emt 0:09:52]} 18. O-O {[%emt 0:05:19]} Re8 {[%emt 0:07:57]} 19. Qd3 {[%emt 0:05:41]} Rh6 {[%emt 0:03:22]} 20. Rc2 {[%emt 0:01:10]} Nd7 {[%emt 0:04:00]} 21. Rfc1 {[%emt 0:04:04]} Rg8 {[%emt 0:01:17]} 22. Qe3 {[%emt 0:03:30]} fxe5 {[%emt 0:09:54]} 23. Nxe5 {[%emt 0:04:09]} Nxe5 {[%emt 0:00:09]} 24. Qxe5+ {[%emt 0:00:07]} Qc7 {[%emt 0:01:38]} 25. Qxc7+ {[%emt 0:00:27]} Kxc7 {[%emt 0:00:01]} 26. Bc3 {[%emt 0:00:11]} Kb6 {[%emt 0:00:52]} 27. Nf3 {[%emt 0:00:16]} Bf6 {[%emt 0:03:25]} 28. Bd2 {[%emt 0:00:28]} Rhh8 {[%emt 0:00:14]} 29. Re1 {[%emt 0:04:02]} Bd7 {[%emt 0:01:32]} 30. Ng5 {[%emt 0:03:39]} Rc8 {[%emt 0:02:45]} 31. Rxc8 {[%emt 0:03:23]} Rxc8 {[%emt 0:00:02]} 32. Nxe6 {[%emt 0:06:20]} Re8 {[%emt 0:01:06]} 33. Nf4 {[%emt 0:00:37]} Rxe1+ {[%emt 0:00:08]} 34. Bxe1 {[%emt 0:00:07]} Bxd4 {[%emt 0:00:38]} 35. Kf1 {[%emt 0:03:24]} Be5 {[%emt 0:02:55]} 36. Nxd5+ {[%emt 0:05:23]} Kc5 {[%emt 0:06:41]} 37. Ne3 {[%emt 0:05:10]} Be6 {[%emt 0:00:39]} 38. Bxa5 {[%emt 0:00:31]} Bxb3 {[%emt 0:00:15]} 39. Bd8 {[%emt 0:01:02]} Bxa4 {[%emt 0:00:09]} 40. Ke2 {[%emt 0:00:00]} Bd7 {[%emt 0:00:00]} 41. Kd3 {[%emt 0:01:17]} Bd6 {[%emt 0:07:01]} 42. f3 {[%emt 0:04:45]} b5 {[%emt 0:01:14]} 43. g4 {[%emt 0:00:59]} hxg4 {[%emt 0:00:19]} 44. fxg4 {[%emt 0:00:09]} b4 {[%emt 0:00:24]} 45. Kc2 {[%emt 0:09:28]} Be6 {[%emt 0:07:45]} 46. Bg5 {[%emt 0:11:54]} b3+ {[%emt 0:00:23]} 47. Kb1 {[%emt 0:00:17]} Be5 {[%emt 0:01:32]} 48. h5 {[%emt 0:01:54]} Bd7 {[%emt 0:00:47]} 49. Be7+ {[%emt 0:04:20]} Kb5 {[%emt 0:00:23]} 50. Ba3 {[%emt 0:00:45]} Bf4 {[%emt 0:06:17]} 51. Nf5 {[%emt 0:02:31]} Kc6 {[%emt 0:02:28]} 1/2-1/2

[Event "EYCC Open-U18 2019"]
[Site "Bratislava"]
[Date "2019.08.07"]
[Round "6.45"]
[White "Toquero Gracia, Pau"]
[Black "Stijve, Theo"]
[Result "1-0"]
[ECO "B22"]
[WhiteElo "2080"]
[BlackElo "2336"]
[Annotator "NA"]
[PlyCount "120"]
[EventDate "2019.08.02"]
[EventType "swiss"]
[EventCountry "SVK"]
[SourceTitle "playchess.com"]
[Source "ChessBase"]
[SourceQuality "1"]
[TimeControl "40/5400+30:1800+30"]

1. e4 {[%emt 0:00:00]} c5 {[%emt 0:00:03]} 2. c3 {[%emt 0:00:00]} d5 {[%emt 0:00:06]} 3. exd5 {[%emt 0:00:00]} Qxd5 {[%emt 0:00:09]} 4. d4 {[%emt 0:00:04]} Nc6 {[%emt 0:00:07]} 5. Nf3 {[%emt 0:00:11]} Bf5 {[%emt 0:00:07]} 6. Be3 {[%emt 0:01:57]} cxd4 {[%emt 0:00:10]} 7. Nxd4 {[%emt 0:00:18]} Nf6 {[%emt 0:00:11]} 8. Nxf5 {[%emt 0:06:02]} Qxf5 {[%emt 0:01:00]} 9. Qd3 {[%emt 0:12:25]} Qd5 {[%emt 0:08:12]} 10. Qxd5 {[%emt 0:01:08]} Nxd5 {[%emt 0:00:10]} 11. Bb5 {[%emt 0:00:02]} Nxe3 {[%emt 0:04:23]} 12. fxe3 {[%emt 0:00:36]} e6 {[%emt 0:03:15]} 13. Nd2 {[%emt 0:03:39]} Bc5 {[%emt 0:03:45]} 14. Ke2 {[%emt 0:02:45]} Ke7 {[%emt 0:02:57]} 15. Bxc6 {[%emt 0:02:42]} bxc6 {[%emt 0:00:11]} 16. Nc4 {[%emt 0:00:15]} a6 {[%emt 0:05:12]} 17. Rad1 {[%emt 0:03:21]} f6 {[%emt 0:05:31]} 18. Rd2 {[%emt 0:02:20]} Rhd8 {[%emt 0:01:59]} 19. Rhd1 {[%emt 0:04:42]} Rxd2+ {[%emt 0:09:26]} 20. Rxd2 {[%emt 0:00:11]} h5 {[%emt 0:03:47]} 21. h3 {[%emt 0:02:34]} g5 {[%emt 0:02:03]} 22. e4 {[%emt 0:06:18]} Rg8 {[%emt 0:05:08]} 23. e5 {[%emt 0:37:53]} Rc8 {[%emt 0:16:20]} 24. exf6+ {[%emt 0:03:31]} Kxf6 {[%emt 0:00:13]} 25. Rd7 {[%emt 0:00:04]} e5 {[%emt 0:07:57]} 26. Rh7 {[%emt 0:01:49]} h4 {[%emt 0:04:19]} 27. Rh6+ {[%emt 0:01:35]} Kf5 {[%emt 0:02:18]} 28. Rh7 {[%emt 0:02:41]} Rf8 {[%emt 0:03:42]} 29. Rh6 {[%emt 0:03:27]} Ke4 {[%emt 0:05:12]} 30. Nd2+ {[%emt 0:01:56]} Kf4 {[%emt 0:04:59]} 31. Rxc6 {[%emt 0:00:11]} Bg1 {[%emt 0:00:49]} 32. Nf3 {[%emt 0:00:39]} Be3 {[%emt 0:01:39]} 33. Rc4+ {[%emt 0:00:20]} e4 {[%emt 0:00:11]} 34. Nxg5 {[%emt 0:00:29]} Re8 {[%emt 0:00:52]} 35. Nf3 {[%emt 0:00:47]} Kg3 {[%emt 0:00:33]} 36. Nxh4 {[%emt 0:00:27]} Bc1 {[%emt 0:00:25]} 37. Nf5+ {[%emt 0:00:18]} Kxg2 {[%emt 0:00:23]} 38. Nd6 {[%emt 0:00:47]} Re6 {[%emt 0:00:41]} 39. Nxe4 {[%emt 0:00:19]} Bxb2 {[%emt 0:00:02]} 40. Kd3 {[%emt 0:00:00]} Rh6 {[%emt 0:00:00]} 41. Ra4 {[%emt 0:04:10]} Rxh3+ {[%emt 0:07:40]} 42. Kc2 {[%emt 0:00:16]} Ba1 {[%emt 0:00:09]} 43. Rxa6 {[%emt 0:00:47]} Re3 {[%emt 0:00:58]} 44. Ra4 {[%emt 0:02:11]} Kf3 {[%emt 0:02:26]} 45. Nd2+ {[%emt 0:00:41]} Kf2 {[%emt 0:02:30]} 46. Rc4 {[%emt 0:00:50]} Re7 {[%emt 0:01:55]} 47. a4 {[%emt 0:00:40]} Re5 {[%emt 0:03:57]} 48. Rb4 {[%emt 0:09:27]} Re3 {[%emt 0:03:00]} 49. Rf4+ {[%emt 0:00:15]} Kg2 {[%emt 0:01:05]} 50. Rc4 {[%emt 0:00:22]} Re5 {[%emt 0:01:13]} 51. Re4 {[%emt 0:00:27]} Rc5 {[%emt 0:01:04]} 52. Rc4 {[%emt 0:04:54]} Re5 {[%emt 0:00:45]} 53. Rb4 {[%emt 0:00:05]} Re3 {[%emt 0:01:06]} 54. Rb3 {[%emt 0:00:07]} Kf2 {[%emt 0:02:47]} 55. Ra3 {[%emt 0:00:47]} Re1 {[%emt 0:00:15]} 56. a5 {[%emt 0:00:35]} Ke2 {[%emt 0:01:21]} 57. Nb3 {[%emt 0:00:47]} Bb2 {[%emt 0:01:00]} 58. Kxb2 {[%emt 0:00:13]} Kd3 {[%emt 0:00:08]} 59. Nc5+ {[%emt 0:01:44]} Kc4 {[%emt 0:00:13]} 60. a6 {[%emt 0:00:27]} Kd5 1-0